bitfinex-derivatives/quotes_BTCF0:USTF0_20241009
["timestamp","ask_amount","ask_price","bid_price","bid_amount"]
[1728490360801,1.580917,62139.0,62138.0,0.08041913]
[1728490360992,1.680917,62139.0,62138.0,0.18093002]
[1728490361390,1.680917,62139.0,62138.0,0.08041913]
[1728490361685,0.080518,62138.0,62137.0,0.08041913]
[1728490361890,0.190918,62138.0,62137.0,0.18089973]
[1728490362390,0.0004,62138.0,62137.0,1.4537996]
[1728490362805,0.0004,62145.0,62138.0,0.080518]
[1728490363100,0.0004,62145.0,62144.0,0.728186]
[1728490363294,0.0004,62145.0,62144.0,0.7321906]
[1728490364286,0.0004,62145.0,62144.0,0.5421906]
[1728490364499,0.01235423,62153.0,62144.0,0.6516806]
[1728490364696,0.01235423,62153.0,62151.0,0.19]
[1728490364697,0.080501,62152.0,62151.0,0.19]
[1728490364890,0.180501,62152.0,62151.0,0.19]
[1728490365301,1.680501,62152.0,62151.0,0.37049547]
[1728490365592,1.680501,62152.0,62151.0,0.27039437]
[1728490365998,1.6,62152.0,62150.0,0.080502]
[1728490366196,0.080503,62150.0,62148.0,0.19]
[1728490366704,0.080503,62150.0,62148.0,0.270504]
[1728490366891,0.080503,62150.0,62149.0,0.1001241]
[1728490367496,0.082503,62150.0,62149.0,0.1001241]
[1728490367698,0.082503,62150.0,62149.0,0.1530241]
[1728490368099,0.083503,62150.0,62149.0,0.1530241]
[1728490368499,0.083503,62150.0,62149.0,0.2335281]
[1728490369293,0.083503,62150.0,62149.0,0.1530241]
[1728490369701,0.086503,62150.0,62149.0,0.1530241]
[1728490370388,0.086503,62150.0,62149.0,0.23340789]
[1728490370592,0.086503,62150.0,62149.0,0.1530241]
[1728490370793,0.196503,62150.0,62149.0,0.23340938]
[1728490371090,0.196503,62150.0,62149.0,0.0529]
[1728490371790,0.196503,62150.0,62149.0,0.13328528]
[1728490372998,0.196503,62150.0,62149.0,0.3139047]
[1728490373302,0.196503,62150.0,62149.0,0.23351942]
[1728490373602,0.196503,62150.0,62149.0,0.2137934]
[1728490373798,0.196503,62150.0,62149.0,0.3139177]
[1728490374705,0.196503,62150.0,62149.0,0.31392129]
[1728490374897,0.196503,62150.0,62149.0,0.2335283]
[1728490375394,0.196503,62150.0,62149.0,0.1530243]
[1728490378002,0.196503,62150.0,62149.0,0.23342009]
[1728490378200,0.196503,62150.0,62149.0,0.1530243]
[1728490378602,0.196503,62150.0,62149.0,0.0529]
[1728490380302,0.196503,62150.0,62149.0,0.21379993]
[1728490380504,0.196503,62150.0,62149.0,0.23358768]
[1728490380698,0.006,62150.0,62149.0,0.23358768]
[1728490381200,0.006,62150.0,62149.0,1.31630768]
[1728490381894,0.006,62150.0,62149.0,1.32900288]
[1728490382301,0.006,62150.0,62149.0,1.44811576]
[1728490382609,0.0004,62157.0,62156.0,0.270495]
[1728490382798,0.080893,62157.0,62156.0,0.37067868]
[1728490382994,0.080893,62157.0,62156.0,0.85371868]
[1728490384110,0.091893,62157.0,62156.0,0.37107868]
[1728490384511,0.101893,62157.0,62156.0,0.37107868]
[1728490386113,0.101893,62157.0,62156.0,0.37066716]
[1728490386905,0.101893,62157.0,62156.0,0.18066716]
[1728490388110,0.101893,62157.0,62156.0,0.1806348]
[1728490392117,0.101893,62157.0,62156.0,0.1001398]
[1728490392305,0.221893,62157.0,62156.0,0.18048971]
[1728490392506,0.221893,62157.0,62156.0,0.1001398]
[1728490392718,0.221893,62157.0,62156.0,0.1805104]
[1728490392908,0.221893,62157.0,62156.0,0.0004]
[1728490394316,0.221893,62157.0,62156.0,0.04822989]
[1728490394515,0.080495,62156.0,62155.0,0.04822989]
[1728490394724,0.080496,62155.0,62154.0,0.04822989]
[1728490395016,0.31,62155.0,62150.0,0.06430444]
[1728490395211,0.631301,62151.0,62150.0,0.06430444]
[1728490395520,0.751301,62151.0,62150.0,0.06430444]
[1728490396011,2.061301,62151.0,62150.0,0.06430444]
[1728490396213,0.009,62156.0,62150.0,0.54130856]
[1728490396414,0.1,62156.0,62155.0,0.631696]
[1728490396718,0.0104,62157.0,62156.0,0.080495]
[1728490396719,0.0004,62157.0,62156.0,0.080495]
[1728490396909,0.0004,62157.0,62156.0,0.29933534]
[1728490398218,0.0074,62157.0,62156.0,0.29933534]
[1728490399114,0.0144,62157.0,62156.0,0.29933534]
[1728490400313,0.0144,62157.0,62156.0,0.29920474]
[1728490401018,0.0144,62157.0,62156.0,0.29918855]
[1728490401627,0.0144,62157.0,62156.0,0.18048321]
[1728490402210,0.094893,62157.0,62156.0,0.18048321]
[1728490402616,0.394893,62157.0,62156.0,0.0004]
[1728490403614,0.394893,62157.0,62156.0,0.06468493]
[1728490404212,0.40730157,62157.0,62156.0,0.06468493]
[1728490404417,0.76810157,62157.0,62156.0,0.0004]
[1728490406321,1.85074157,62157.0,62156.0,0.0004]
[1728490406520,0.080502,62150.0,62146.0,0.06798493]
[1728490406815,0.080509,62145.0,62143.0,0.06428493]
[1728490407011,0.390509,62145.0,62141.0,0.06428493]
[1728490407320,0.441409,62145.0,62140.0,0.0004]
[1728490407518,1.941409,62145.0,62140.0,0.0004]
[1728490407719,0.080514,62141.0,62140.0,0.0004]
[1728490407918,0.561314,62141.0,62140.0,0.0004]
[1728490408320,2.061314,62141.0,62140.0,0.0004]
[1728490409316,2.061314,62141.0,62140.0,0.0014]
[1728490409817,1.5,62141.0,62140.0,0.33619993]
[1728490410022,1.5,62141.0,62140.0,0.377215]
[1728490410719,1.5,62141.0,62140.0,0.45756022]
[1728490411107,1.5,62141.0,62140.0,0.55771716]
[1728490411306,1.5,62141.0,62140.0,0.324815]
[1728490411521,1.690514,62141.0,62140.0,0.0014]
[1728490411826,1.690514,62141.0,62140.0,0.06559752]
[1728490412009,1.690514,62141.0,62140.0,0.0014]
[1728490413428,1.690514,62141.0,62140.0,0.081915]
[1728490413929,1.690514,62141.0,62140.0,0.14611252]
[1728490414115,1.690514,62141.0,62140.0,0.0014]
[1728490414618,1.690514,62141.0,62140.0,0.0004]
[1728490415731,1.696514,62141.0,62140.0,0.0004]
[1728490415923,1.703514,62141.0,62140.0,0.0004]
[1728490416228,1.703514,62141.0,62140.0,0.14511252]
[1728490416726,1.703514,62141.0,62140.0,0.06459752]
[1728490417029,1.703514,62141.0,62140.0,0.0004]
[1728490417522,1.706514,62141.0,62140.0,0.080915]
[1728490417717,1.706514,62141.0,62140.0,0.06459752]
[1728490417921,1.706514,62141.0,62140.0,0.0004]
[1728490418126,1.704514,62141.0,62140.0,0.06459752]
[1728490418325,1.698514,62141.0,62140.0,0.06459752]
[1728490418720,1.698514,62141.0,62140.0,0.0004]
[1728490418721,1.706514,62141.0,62140.0,0.0004]
[1728490418916,1.706514,62141.0,62140.0,0.14507554]
[1728490418917,1.516,62141.0,62140.0,0.14507554]
[1728490419226,0.015,62141.0,62140.0,0.26121321]
[1728490419420,0.0004,62145.0,62140.0,0.18086799]
[1728490419627,0.1104,62145.0,62144.0,0.69586981]
[1728490420123,0.0004,62145.0,62144.0,0.63171]
[1728490420328,1.5,62150.0,62144.0,0.73143737]
[1728490420525,1.62,62150.0,62149.0,0.69546765]
[1728490420925,0.080496,62155.0,62154.0,0.080497]
[1728490421134,0.080496,62155.0,62154.0,0.270897]
[1728490421427,0.080893,62157.0,62156.0,0.080495]
[1728490421630,0.080496,62155.0,62154.0,0.002]
[1728490421825,0.080496,62155.0,62154.0,0.0004]
[1728490421826,0.200496,62155.0,62154.0,0.0004]
[1728490422035,1.712496,62155.0,62154.0,0.0004]
[1728490423030,1.512,62155.0,62154.0,0.270897]
[1728490423425,1.512,62155.0,62154.0,0.33505793]
[1728490423733,1.512,62155.0,62154.0,0.270897]
[1728490423734,1.5,62155.0,62154.0,0.270897]
[1728490424333,1.511,62155.0,62154.0,0.271897]
[1728490424823,1.507,62155.0,62154.0,0.271897]
[1728490425022,1.587496,62155.0,62154.0,0.271897]
[1728490425331,1.598496,62155.0,62154.0,0.33606134]
[1728490425917,1.594496,62155.0,62154.0,0.33606134]
[1728490426326,1.594496,62155.0,62154.0,0.14606134]
[1728490427923,1.594496,62155.0,62154.0,0.081897]
[1728490429223,1.594496,62155.0,62154.0,0.271897]
[1728490429820,1.594496,62155.0,62154.0,0.1914]
[1728490430023,1.594496,62155.0,62154.0,0.0014]
[1728490430225,1.594496,62155.0,62154.0,0.06558931]
[1728490430426,1.594496,62155.0,62154.0,0.0014]
[1728490430719,1.644496,62155.0,62154.0,0.06560079]
[1728490430918,1.834496,62155.0,62154.0,0.06560079]
[1728490431123,1.834496,62155.0,62154.0,0.0014]
[1728490431727,1.84669119,62155.0,62154.0,0.0014]
[1728490432128,1.65669119,62155.0,62154.0,0.0014]
[1728490432727,2.20749119,62155.0,62154.0,0.0014]
[1728490433536,2.26069119,62155.0,62154.0,0.0014]
[1728490434644,2.26669119,62155.0,62154.0,0.0014]
[1728490434934,2.26669119,62155.0,62154.0,0.0004]
[1728490435132,2.26669119,62155.0,62154.0,0.0014]
[1728490435335,2.27469119,62155.0,62154.0,0.0014]
[1728490435737,3.35737119,62155.0,62154.0,0.0014]
[1728490436037,3.34337119,62155.0,62154.0,0.0014]
[1728490436239,3.35737119,62155.0,62154.0,0.0014]
[1728490436832,0.080502,62150.0,62149.0,0.0004]
[1728490437038,0.741302,62150.0,62149.0,0.0004]
[1728490437931,0.755302,62150.0,62149.0,0.0004]
[1728490438330,1.838022,62150.0,62149.0,0.0004]
[1728490438741,1.851022,62150.0,62149.0,0.0004]
[1728490440433,1.251022,62150.0,62149.0,0.0004]
[1728490440638,1.061022,62150.0,62149.0,0.0004]
[1728490440827,0.578302,62150.0,62149.0,0.0004]
[1728490441240,1.061022,62150.0,62149.0,0.0004]
[1728490441427,0.578302,62150.0,62149.0,0.0004]
[1728490442643,0.217502,62150.0,62149.0,0.0004]
[1728490442941,0.217502,62150.0,62149.0,0.21660857]
[1728490442942,0.027,62150.0,62149.0,0.21660857]
[1728490443245,0.027,62150.0,62149.0,0.31661365]
[1728490443440,0.0004,62157.0,62156.0,0.080495]
[1728490443637,0.0004,62157.0,62156.0,0.14474105]
[1728490443838,0.0004,62157.0,62156.0,0.14514105]
[1728490444041,0.0004,62157.0,62156.0,0.080895]
[1728490444244,0.080893,62157.0,62156.0,0.080895]
[1728490444543,0.094893,62157.0,62156.0,0.080895]
[1728490444740,0.104893,62157.0,62156.0,0.080895]
[1728490445339,0.104893,62157.0,62156.0,0.14513872]
[1728490445548,0.104893,62157.0,62156.0,0.06464372]
[1728490445742,0.294893,62157.0,62156.0,0.06464372]
[1728490446040,0.775693,62157.0,62156.0,0.0004]
[1728490446246,2.275693,62157.0,62156.0,0.0004]
[1728490446838,2.262693,62157.0,62156.0,0.0014]
[1728490447246,2.305093,62157.0,62156.0,0.0014]
[1728490447546,2.254693,62157.0,62156.0,0.0014]
[1728490447944,2.251693,62157.0,62156.0,0.0004]
[1728490448245,2.254693,62157.0,62156.0,0.0024]
[1728490450146,2.266693,62157.0,62156.0,0.0024]
[1728490450447,2.66884,62157.0,62149.0,0.06464372]
[1728490450748,0.080507,62146.0,62145.0,0.0037]
[1728490450935,0.080507,62146.0,62144.0,0.0008]
[1728490450936,0.080509,62145.0,62144.0,0.0008]
[1728490451140,0.080514,62141.0,62127.0,0.08030756]
[1728490451348,0.080532,62127.0,62126.0,0.08030756]
[1728490451653,0.080533,62126.0,62125.0,0.08030756]
[1728490451853,0.080933,62126.0,62125.0,0.1806937]
[1728490452147,0.080933,62126.0,62124.0,0.3608]
[1728490452148,0.080535,62125.0,62124.0,0.3608]
[1728490452351,0.080935,62125.0,62124.0,0.3608]
[1728490452939,0.080536,62124.0,62114.0,0.08030756]
[1728490453141,0.19,62115.0,62109.0,0.08030756]
[1728490453337,0.080554,62111.0,62108.0,0.08030756]
[1728490453550,0.3608,62117.0,62112.0,0.080551]
[1728490453749,0.3608,62117.0,62116.0,0.0004]
[1728490454145,0.441345,62117.0,62116.0,0.0004]
[1728490455149,0.443345,62117.0,62116.0,0.0244]
[1728490455344,0.45613742,62117.0,62116.0,0.0244]
[1728490455741,0.55613742,62117.0,62116.0,0.0244]
[1728490456350,2.05613742,62117.0,62116.0,0.0244]
[1728490457050,2.05513742,62117.0,62116.0,0.0054]
[1728490457250,2.05613742,62117.0,62116.0,0.0114]
[1728490458244,1.97559242,62117.0,62103.0,0.3683]
[1728490458444,1.97559242,62117.0,62111.0,0.080553]
[1728490458445,0.080552,62112.0,62111.0,0.080553]
[1728490459052,1.943346,62117.0,62111.0,0.19]
[1728490459247,1.943346,62117.0,62116.0,0.0004]
[1728490459950,1.941346,62117.0,62116.0,0.0004]
[1728490460352,1.941346,62117.0,62102.0,0.08035593]
[1728490460648,1.943346,62117.0,62116.0,0.01]
[1728490460956,2.304146,62117.0,62116.0,0.01]
[1728490461253,2.414146,62117.0,62116.0,0.01]
[1728490461446,2.414146,62117.0,62116.0,0.005]
[1728490462157,2.3336,62117.0,62116.0,0.085546]
[1728490462650,2.3336,62117.0,62116.0,0.080546]
[1728490463053,2.3236,62117.0,62116.0,0.080546]
[1728490466745,2.2236,62117.0,62116.0,0.080546]
[1728490468254,2.2236,62117.0,62116.0,0.563506]
[1728490468255,2.3336,62117.0,62116.0,0.563506]
[1728490468453,2.2236,62117.0,62116.0,1.163506]
[1728490469556,2.17523809,62117.0,62116.0,1.163506]
[1728490470253,0.67523809,62117.0,62116.0,1.163506]
[1728490470458,0.3608,62123.0,62122.0,0.080539]
[1728490470648,0.2778,62123.0,62122.0,0.870939]
[1728490470847,0.0004,62125.0,62124.0,0.080536]
[1728490471051,0.0004,62125.0,62124.0,0.080936]
[1728490471355,0.0004,62125.0,62124.0,1.163856]
[1728490472964,0.0034,62125.0,62124.0,1.163856]
[1728490473558,0.0004,62133.0,62125.0,0.48288]
[1728490473756,0.0004,62133.0,62132.0,0.0004]
[1728490473960,0.0004,62133.0,62132.0,0.080926]
[1728490474160,0.0004,62133.0,62132.0,1.163766]
[1728490475260,0.080924,62133.0,62132.0,0.0004]
[1728490475567,0.081924,62133.0,62132.0,0.0004]
[1728490476565,0.133924,62133.0,62132.0,0.0024]
[1728490476769,0.133924,62133.0,62132.0,0.0074]
[1728490477859,0.132924,62133.0,62132.0,0.0054]
[1728490478061,0.080532,62127.0,62126.0,0.0004]
[1728490478266,0.731332,62127.0,62126.0,0.0004]
[1728490479167,0.731332,62127.0,62126.0,0.0044]
[1728490479464,2.231332,62127.0,62126.0,0.0044]
[1728490479867,2.231332,62127.0,62126.0,0.0004]
[1728490480165,2.236332,62127.0,62126.0,0.0014]
[1728490480766,2.241332,62127.0,62126.0,0.0014]
[1728490481557,2.051332,62127.0,62126.0,0.0014]
[1728490482469,1.951332,62127.0,62126.0,0.0014]
[1728490482670,1.951332,62127.0,62126.0,0.081933]
[1728490483767,1.951332,62127.0,62126.0,0.0014]
[1728490483965,2.141332,62127.0,62126.0,0.0014]
[1728490484368,2.141332,62127.0,62126.0,0.081933]
[1728490484568,1.951332,62127.0,62126.0,0.081933]
[1728490485474,1.951332,62127.0,62126.0,0.0014]
[1728490486971,1.951332,62127.0,62124.0,0.0008]
[1728490487171,1.951332,62127.0,62101.0,0.0082]
[1728490487172,0.080542,62119.0,62114.0,0.07999879]
[1728490487365,0.080542,62119.0,62112.0,0.07999879]
[1728490487366,0.08055,62113.0,62112.0,0.07999879]
[1728490487565,0.080552,62112.0,62111.0,0.08241308]
[1728490487772,1.580552,62112.0,62111.0,0.00241429]
[1728490488373,1.580552,62112.0,62111.0,0.08241308]
[1728490488766,1.580552,62112.0,62111.0,0.18307594]
[1728490488961,1.580552,62112.0,62111.0,0.18407594]
[1728490489167,1.581552,62112.0,62111.0,0.18407594]
[1728490489675,1.581552,62112.0,62111.0,0.10407715]
[1728490489869,1.581552,62112.0,62111.0,0.1843814]
[1728490490069,1.581552,62112.0,62111.0,0.1863814]
[1728490490070,1.582552,62112.0,62111.0,0.1863814]
[1728490490465,1.581552,62112.0,62111.0,0.2649344]
[1728490490675,0.002,62112.0,62111.0,1.26963015]
[1728490490867,0.3612,62119.0,62118.0,0.080544]
[1728490491173,0.3612,62119.0,62118.0,0.18160686]
[1728490491370,0.631742,62119.0,62118.0,0.18160686]
[1728490491872,0.6612,62119.0,62112.0,0.0004]
[1728490492172,0.63135,62113.0,62112.0,0.0004]
[1728490492877,2.23135,62113.0,62112.0,0.0004]
[1728490493778,2.23235,62113.0,62112.0,0.0004]
[1728490494272,2.24469437,62113.0,62112.0,0.0004]
[1728490495177,2.24569437,62113.0,62112.0,0.0004]
[1728490495379,2.24569437,62113.0,62112.0,0.080952]
[1728490495380,2.05569437,62113.0,62112.0,0.080952]
[1728490495874,2.05469437,62113.0,62112.0,0.0024]
[1728490496173,2.05469437,62113.0,62112.0,1.355952]
[1728490496174,0.006,62113.0,62112.0,1.355952]
[1728490496371,0.005,62113.0,62112.0,0.95470544]
[1728490496567,0.01,62113.0,62112.0,1.57623849]
[1728490496777,0.01,62113.0,62112.0,0.858352]
[1728490496978,0.005,62113.0,62112.0,0.858352]
[1728490497179,0.008,62113.0,62112.0,0.858352]
[1728490497477,0.008,62113.0,62112.0,1.458352]
[1728490497680,0.003,62113.0,62112.0,1.57616217]
[1728490497973,0.009,62113.0,62112.0,1.17616217]
[1728490498171,0.009,62113.0,62112.0,1.36616217]
[1728490498475,0.003,62113.0,62112.0,1.25671417]
[1728490498682,0.008,62113.0,62112.0,1.25671417]
[1728490499203,0.005,62113.0,62112.0,1.25671417]
[1728490499480,0.006,62113.0,62112.0,1.25671417]
[1728490499879,0.001,62113.0,62112.0,1.25671417]
[1728490500082,0.002,62113.0,62112.0,1.25771417]
[1728490500583,0.002,62113.0,62112.0,1.38676217]
[1728490500779,0.001,62113.0,62112.0,1.38676217]
[1728490501080,0.001,62113.0,62112.0,0.668952]
[1728490501081,0.002,62113.0,62112.0,0.668952]
[1728490501276,0.002,62113.0,62112.0,0.185952]
[1728490501477,0.002,62113.0,62112.0,0.133052]
[1728490502079,0.001,62113.0,62112.0,0.133052]
[1728490502376,0.002,62113.0,62112.0,0.25085618]
[1728490502584,0.002,62113.0,62112.0,0.133052]
[1728490502780,0.002,62113.0,62112.0,0.080552]
[1728490502781,0.001,62113.0,62112.0,0.080552]
[1728490503085,0.002,62113.0,62112.0,0.081552]
[1728490503283,0.12926323,62113.0,62112.0,0.081552]
[1728490503577,0.20981323,62113.0,62112.0,0.081552]
[1728490504179,0.20981323,62113.0,62112.0,0.17790832]
[1728490504385,0.20881323,62113.0,62112.0,0.17790832]
[1728490504683,0.32781323,62113.0,62112.0,0.001]
[1728490505275,1.82781323,62113.0,62112.0,0.001]
[1728490505980,1.74726323,62113.0,62112.0,0.001]
[1728490506182,1.82781323,62113.0,62112.0,0.001]
[1728490506381,1.82781323,62113.0,62112.0,0.081552]
[1728490506985,1.82781323,62113.0,62112.0,0.180877]
[1728490507181,1.82781323,62113.0,62112.0,0.18090051]
[1728490507482,0.136145,62118.0,62114.0,0.080549]
[1728490507483,0.080544,62118.0,62114.0,0.080549]
[1728490507675,0.0004,62119.0,62118.0,0.080544]
[1728490507875,0.0004,62119.0,62118.0,0.18029251]
[1728490508479,0.080942,62119.0,62118.0,0.18029251]
[1728490508683,0.0004,62119.0,62118.0,0.18029251]
[1728490509576,0.00454,62124.0,62123.0,0.080537]
[1728490509787,0.0037,62132.0,62124.0,0.080536]
[1728490509972,0.0037,62132.0,62124.0,0.18028451]
[1728490510284,1.5,62131.0,62124.0,0.29823007]
[1728490510578,1.50084,62131.0,62124.0,0.78115007]
[1728490510780,0.31284608,62127.0,62124.0,0.21769407]
[1728490510986,0.31284608,62127.0,62126.0,0.080933]
[1728490511175,0.31284608,62127.0,62126.0,0.18028151]
[1728490512087,1.50084,62131.0,62130.0,0.080528]
[1728490512381,0.3612,62133.0,62130.0,0.080528]
[1728490512382,0.3612,62133.0,62132.0,0.080526]
[1728490512578,0.3612,62133.0,62132.0,0.18027451]
[1728490512779,1.941724,62133.0,62132.0,0.18027451]
[1728490513075,1.8612,62133.0,62132.0,0.18027451]
[1728490513277,1.8612,62133.0,62132.0,0.17904349]
[1728490513888,0.3612,62133.0,62132.0,0.17904349]
[1728490514081,0.3732,62133.0,62132.0,0.17904349]
[1728490514474,0.0124,62133.0,62132.0,0.17904349]
[1728490515079,0.0244,62133.0,62132.0,0.17904349]
[1728490517086,0.0244,62133.0,62132.0,0.17886857]
[1728490518483,0.0244,62133.0,62132.0,0.27518062]
[1728490518781,0.0244,62133.0,62132.0,0.46507468]
[1728490519185,0.0244,62133.0,62132.0,0.36886857]
[1728490519381,0.0244,62133.0,62132.0,1.54789251]
[1728490519693,0.0244,62133.0,62132.0,1.45170857]
[1728490519897,0.0244,62133.0,62132.0,0.2750509]
[1728490520087,0.0244,62133.0,62132.0,0.17886857]
[1728490521795,0.0244,62133.0,62132.0,0.25884761]
[1728490522200,0.0244,62133.0,62132.0,0.17871875]
[1728490522492,0.0244,62133.0,62132.0,0.25884699]
[1728490523887,0.0244,62133.0,62132.0,0.17871875]
[1728490526502,0.0244,62133.0,62132.0,1.45155875]
[1728490526796,0.0244,62133.0,62132.0,1.45156539]
[1728490527793,0.0037,62139.0,62132.0,1.37103939]
[1728490527996,0.3608,62140.0,62137.0,0.0801563]
[1728490528299,0.3608,62140.0,62139.0,0.080917]
[1728490528501,0.441315,62140.0,62139.0,0.080917]
[1728490528799,0.441315,62140.0,62139.0,0.14504128]
[1728490528800,0.56857823,62140.0,62139.0,0.14504128]
[1728490529211,0.56857823,62140.0,62139.0,0.0004]
[1728490529397,0.080518,62138.0,62137.0,0.04463076]
[1728490529605,0.080518,62138.0,62124.0,0.0825563]
[1728490529606,0.080535,62125.0,62124.0,0.0825563]
[1728490529903,0.49957395,62125.0,62124.0,0.0008]
[1728490530208,2.18957395,62125.0,62124.0,0.0008]
[1728490530506,2.18957395,62125.0,62124.0,0.081336]
[1728490530806,2.19257395,62125.0,62124.0,0.081336]
[1728490531399,2.19257395,62125.0,62124.0,0.0008]
[1728490532089,0.080536,62124.0,62123.0,0.0004]
[1728490532292,0.21873895,62124.0,62118.0,0.0008]
[1728490532500,0.68918095,62119.0,62118.0,0.0008]
[1728490533001,0.79918095,62119.0,62118.0,0.0008]
[1728490533200,0.080544,62118.0,62117.0,0.0004]
[1728490533393,0.080544,62118.0,62110.0,0.00241476]
[1728490533394,0.080553,62111.0,62110.0,0.00241476]
[1728490533602,0.68919195,62111.0,62110.0,0.00241476]
[1728490534001,0.080557,62108.0,62107.0,0.080558]
[1728490534303,0.13839595,62108.0,62107.0,0.080558]
[1728490534608,0.080562,62104.0,62103.0,0.080562]
[1728490535104,0.32840095,62104.0,62103.0,0.080562]
[1728490535499,0.080567,62101.0,62100.0,0.080565]
[1728490535898,0.05783895,62101.0,62100.0,0.080565]
[1728490536097,0.13840495,62101.0,62100.0,0.080565]
[1728490536404,0.08057,62098.0,62097.0,0.080571]
[1728490536593,0.63137,62098.0,62097.0,0.080571]
[1728490536901,0.080575,62095.0,62094.0,0.080575]
[1728490537301,0.080583,62088.0,62087.0,0.00241589]
[1728490537497,0.60863895,62088.0,62087.0,0.00241589]
[1728490537896,0.60863895,62088.0,62087.0,0.08299989]
[1728490538113,0.41863895,62088.0,62087.0,0.08299989]
[1728490538793,1.50184,62095.0,62094.0,0.080575]
[1728490538999,1.501,62095.0,62094.0,0.080575]
[1728490539206,1.55883895,62095.0,62094.0,0.080975]
[1728490539510,2.31304,62095.0,62060.0,0.19]
[1728490539705,2.31304,62095.0,62064.0,0.19]
[1728490539706,0.3608,62073.0,62064.0,0.19]
[1728490540002,0.3608,62073.0,62059.0,0.0612]
[1728490540003,0.3608,62076.0,62072.0,0.270603]
[1728490540204,0.3608,62076.0,62075.0,0.271]
[1728490540412,0.3608,62076.0,62075.0,0.13883895]
[1728490540908,0.3608,62076.0,62075.0,0.05823895]
[1728490540909,0.441398,62076.0,62075.0,0.05823895]
[1728490541112,0.441398,62076.0,62075.0,0.0004]
[1728490541407,0.442398,62076.0,62075.0,0.0004]
[1728490541609,1.525678,62076.0,62075.0,0.0004]
[1728490542498,0.3618,62076.0,62075.0,0.05823895]
[1728490542702,0.3618,62076.0,62075.0,0.14983895]
[1728490542901,0.3628,62076.0,62075.0,0.15983895]
[1728490544912,0.002,62076.0,62075.0,0.15983895]
[1728490545507,0.443398,62076.0,62075.0,0.07923895]
[1728490545915,0.443398,62076.0,62075.0,0.0214]
[1728490547307,3.146678,62076.0,62075.0,0.0214]
[1728490547507,2.063398,62076.0,62075.0,0.0214]
[1728490547707,2.063398,62076.0,62075.0,0.07923895]
[1728490547708,0.443398,62076.0,62075.0,0.07923895]
[1728490548704,1.636678,62076.0,62075.0,0.0214]
[1728490548909,0.443398,62076.0,62075.0,0.07923895]
[1728490550114,0.002,62076.0,62075.0,0.15983895]
[1728490550317,0.6428,62076.0,62075.0,0.102]
[1728490550508,0.6428,62076.0,62052.0,0.080629]
[1728490550509,0.080617,62062.0,62052.0,0.080629]
[1728490550711,0.3608,62063.0,62062.0,0.080616]
[1728490550911,0.441415,62063.0,62062.0,0.081016]
[1728490551215,0.4157,62063.0,62048.0,0.00112]
[1728490551421,0.4157,62063.0,62033.0,0.0082]
[1728490551422,0.080653,62034.0,62033.0,0.0082]
[1728490551731,0.3608,62034.0,62033.0,0.080654]
[1728490551917,0.3608,62034.0,62033.0,1.164254]
[1728490552221,0.3608,62046.0,62045.0,0.080639]
[1728490552716,0.3608,62046.0,62045.0,0.081039]
[1728490553017,1.50088,62048.0,62047.0,0.080636]
[1728490553205,1.5,62048.0,62047.0,0.080636]
[1728490553405,1.5,62048.0,62047.0,1.164556]
[1728490553616,0.3608,62052.0,62047.0,1.08392]
[1728490553810,0.3608,62052.0,62051.0,0.080631]
[1728490554010,0.3608,62052.0,62051.0,0.081031]
[1728490555503,0.3608,62052.0,62051.0,1.164511]
[1728490555816,0.3608,62059.0,62058.0,0.080622]
[1728490556111,0.44142,62059.0,62058.0,0.0004]
[1728490557113,0.44142,62059.0,62058.0,0.081022]
[1728490557315,0.44942,62059.0,62058.0,0.0004]
[1728490557811,0.44442,62059.0,62058.0,0.0004]
[1728490558019,0.45142,62059.0,62058.0,0.0004]
[1728490558911,0.3668,62059.0,62058.0,0.081022]
[1728490559116,0.44742,62059.0,62058.0,0.0004]
[1728490559417,0.44742,62059.0,62058.0,0.081022]
[1728490559717,0.45142,62059.0,62058.0,0.081022]
[1728490559916,0.45042,62059.0,62058.0,0.081022]
[1728490560509,0.44942,62059.0,62058.0,0.081022]
[1728490561622,0.44842,62059.0,62058.0,0.081022]
[1728490562118,0.45042,62059.0,62058.0,0.081022]
[1728490563013,0.3698,62059.0,62058.0,0.081022]
[1728490563215,0.3628,62059.0,62058.0,0.081022]
[1728490563520,0.3638,62059.0,62058.0,0.081022]
[1728490563820,0.3628,62059.0,62058.0,0.081022]
[1728490564017,0.3638,62059.0,62058.0,0.081022]
[1728490564210,0.3618,62059.0,62058.0,0.081022]
[1728490564412,0.3608,62059.0,62058.0,0.081022]
[1728490564615,0.3618,62059.0,62058.0,0.081022]
[1728490567221,0.31339331,62059.0,62058.0,0.081022]
[1728490568015,0.31439331,62059.0,62058.0,0.081022]
[1728490568219,0.31439331,62059.0,62058.0,0.17916892]
[1728490568820,0.001,62059.0,62058.0,0.17916892]
[1728490569027,0.002,62059.0,62058.0,0.17916892]
[1728490569523,0.001,62059.0,62058.0,0.17916892]
[1728490569724,0.080614,62065.0,62064.0,0.080614]
[1728490572819,0.080614,62065.0,62064.0,0.270614]
[1728490573017,0.00100001,62069.0,62068.0,0.080609]
[1728490573320,0.3608,62076.0,62068.0,0.28776581]
[1728490573623,0.080603,62074.0,62073.0,0.0806]
[1728490573817,0.3608,62076.0,62075.0,0.0806]
[1728490574123,0.441398,62076.0,62075.0,0.0806]
[1728490574426,0.3608,62076.0,62075.0,0.0806]
[1728490574615,1.581434,62080.0,62079.0,0.080594]
[1728490574815,1.580594,62080.0,62079.0,0.270594]
[1728490575014,0.00241709,62086.0,62079.0,0.19]
[1728490575213,0.00241709,62086.0,62081.0,0.080592]
[1728490575214,0.080588,62085.0,62081.0,0.080592]
[1728490575822,0.080589,62083.0,62081.0,0.080592]